[Event "*** Titled Tuesday 3|2 Blitz"]
[Site "Chess.com"]
[Date "2015.03.03"]
[Round "5"]
[White "AkshatChandra"]
[Black "Gevorg_Harutjunyan"]
[Result "1-0"]
[WhiteElo "2541"]
[BlackElo "2501"]
[TimeControl "180+2"]
[EndTime "12:05:01 PST"]
[Termination "AkshatChandra won by resignation"]

1. e4 {[%clk 0:03:00]} 1... c6 {[%clk 0:02:59]} 2. d4 {[%clk 0:03:00.5]} 2... d5
{[%clk 0:03:00.7]} 3. Nc3 {[%clk 0:02:55.9]} 3... dxe4 {[%clk 0:03:02]} 4. Nxe4
{[%clk 0:02:57.8]} 4... Bf5 {[%clk 0:03:03.6]} 5. Ng3 {[%clk 0:02:59]} 5... Bg6
{[%clk 0:03:05]} 6. h4 {[%clk 0:03:00.4]} 6... h6 {[%clk 0:03:06.4]} 7. Nf3
{[%clk 0:03:01.5]} 7... Nd7 {[%clk 0:03:07.2]} 8. h5 {[%clk 0:03:02.4]} 8... Bh7
{[%clk 0:03:08.7]} 9. Bd3 {[%clk 0:03:03.6]} 9... Bxd3 {[%clk 0:03:10.4]} 10.
Qxd3 {[%clk 0:03:05.5]} 10... Ngf6 {[%clk 0:03:12.3]} 11. Bd2 {[%clk 0:03:06.3]}
11... e6 {[%clk 0:03:13.9]} 12. O-O-O {[%clk 0:03:07.9]} 12... Qc7 {[%clk
0:03:14.4]} 13. Ne4 {[%clk 0:03:02.5]} 13... Be7 {[%clk 0:03:15.8]} 14. Nxf6+
{[%clk 0:02:57.8]} 14... Bxf6 {[%clk 0:03:16.5]} 15. Kb1 {[%clk 0:02:57.3]}
15... Rd8 {[%clk 0:03:10.6]} 16. Qe2 {[%clk 0:02:57.1]} 16... Qb6 {[%clk
0:03:06.4]} 17. Bc1 {[%clk 0:02:53]} 17... Be7 {[%clk 0:02:50.6]} 18. g4 {[%clk
0:02:50.9]} 18... Nf6 {[%clk 0:02:51.8]} 19. c4 {[%clk 0:02:29.7]} 19... Qa5
{[%clk 0:01:38.3]} 20. Ne5 {[%clk 0:02:00.7]} 20... Nd7 {[%clk 0:01:21.2]} 21.
Bd2 {[%clk 0:01:36.4]} 21... Qb6 {[%clk 0:01:13.5]} 22. Nxd7 {[%clk 0:01:09.8]}
22... Rxd7 {[%clk 0:01:12.8]} 23. Be3 {[%clk 0:01:11.4]} 23... Qa6 {[%clk
0:00:56]} 24. f4 {[%clk 0:01:11.1]} 24... Kd8 {[%clk 0:00:48.2]} 25. g5 {[%clk
0:01:05.5]} 25... Kc8 {[%clk 0:00:45.6]} 26. Qc2 {[%clk 0:00:48.6]} 26... Qa5
{[%clk 0:00:39.8]} 27. g6 {[%clk 0:00:41.2]} 27... fxg6 {[%clk 0:00:25.7]} 28.
Qxg6 {[%clk 0:00:36.3]} 28... Bf6 {[%clk 0:00:26.9]} 29. Qe4 {[%clk 0:00:29.6]}
29... Qf5 {[%clk 0:00:24.7]} 30. Qxf5 {[%clk 0:00:30.2]} 30... exf5 {[%clk
0:00:26.6]} 31. d5 {[%clk 0:00:27.7]} 31... Rhd8 {[%clk 0:00:22.2]} 32. Bxa7
{[%clk 0:00:26.7]} 32... cxd5 {[%clk 0:00:21.3]} 33. Bb6 {[%clk 0:00:27]} 33...
Re8 {[%clk 0:00:22.3]} 34. cxd5 {[%clk 0:00:25]} 34... Re2 {[%clk 0:00:22.7]}
35. Bd4 {[%clk 0:00:23]} 35... Rxd5 {[%clk 0:00:07.8]} 36. Bxf6 {[%clk
0:00:23.9]} 36... Rxd1+ {[%clk 0:00:08.9]} 37. Rxd1 {[%clk 0:00:25.8]} 37...
gxf6 {[%clk 0:00:10.7]} 38. Rd5 {[%clk 0:00:21.6]} 38... Kc7 {[%clk 0:00:05.2]}
39. Rxf5 {[%clk 0:00:22.4]} 39... Re6 {[%clk 0:00:06.6]} 40. a4 {[%clk
0:00:23.1]} 40... Kd6 {[%clk 0:00:08]} 41. Rb5 {[%clk 0:00:23.5]} 41... Kc6
{[%clk 0:00:09]} 42. Rf5 {[%clk 0:00:21.1]} 42... Kd7 {[%clk 0:00:08.4]} 43. Ka2
{[%clk 0:00:22.1]} 43... b6 {[%clk 0:00:09.4]} 44. Ka3 {[%clk 0:00:19.9]} 44...
Rd6 {[%clk 0:00:10.7]} 45. Kb3 {[%clk 0:00:19.4]} 45... Ke6 {[%clk 0:00:12.1]}
46. Rb5 {[%clk 0:00:20.2]} 46... Kd7 {[%clk 0:00:09.4]} 47. Kc3 {[%clk
0:00:20.5]} 47... Kc6 {[%clk 0:00:10.8]} 48. b4 {[%clk 0:00:20.6]} 48... Re6
{[%clk 0:00:12.1]} 49. Rf5 {[%clk 0:00:21.6]} 49... Re3+ {[%clk 0:00:12.2]} 50.
Kd4 {[%clk 0:00:22.4]} 50... Re6 {[%clk 0:00:13.9]} 51. Kc4 {[%clk 0:00:23.8]}
51... Re4+ {[%clk 0:00:14.6]} 52. Kc3 {[%clk 0:00:25.3]} 52... Re3+ {[%clk
0:00:15.6]} 53. Kd4 {[%clk 0:00:25.3]} 53... Re6 {[%clk 0:00:17.1]} 54. a5
{[%clk 0:00:24.9]} 54... bxa5 {[%clk 0:00:16.2]} 55. Rxa5 {[%clk 0:00:24.7]}
55... Kb6 {[%clk 0:00:09.1]} 56. Ra8 {[%clk 0:00:12.4]} 56... f5 {[%clk
0:00:06.6]} 57. Rb8+ {[%clk 0:00:13.6]} 57... Kc7 {[%clk 0:00:07.4]} 58. Rh8
{[%clk 0:00:14.3]} 58... Re4+ {[%clk 0:00:08.7]} 59. Kc5 {[%clk 0:00:15.8]}
59... Rxf4 {[%clk 0:00:09.4]} 60. Rh7+ {[%clk 0:00:17.2]} 60... Kd8 {[%clk
0:00:10.1]} 61. Rxh6 {[%clk 0:00:18.8]} 61... Rf1 {[%clk 0:00:11.8]} 62. b5
{[%clk 0:00:19.6]} 62... f4 {[%clk 0:00:13.3]} 63. Rh8+ {[%clk 0:00:21.2]} 63...
Kd7 {[%clk 0:00:14.2]} 64. h6 {[%clk 0:00:21.8]} 64... f3 {[%clk 0:00:15.5]} 65.
h7 {[%clk 0:00:23.4]} 65... Rc1+ {[%clk 0:00:16.4]} 66. Kb6 {[%clk 0:00:22.9]}
66... Rh1 {[%clk 0:00:15.6]} 67. Ra8 {[%clk 0:00:20.5]} 67... f2 {[%clk
0:00:16.1]} 68. Rf8 {[%clk 0:00:14.4]} 68... Rh6+ {[%clk 0:00:14.8]} 69. Ka7
{[%clk 0:00:09.4]} 69... Rxh7 {[%clk 0:00:09.8]} 70. b6 {[%clk 0:00:07.1]} 70...
Kc6+ {[%clk 0:00:09.3]} 71. Ka6 {[%clk 0:00:05.7]} 71... Rh2 {[%clk 0:00:07.1]}
72. Rf6+ {[%clk 0:00:06]} 72... Kd5 {[%clk 0:00:07.4]} 73. b7 {[%clk 0:00:06.2]}
73... Rh6 {[%clk 0:00:08.3]} 74. Rxh6 {[%clk 0:00:03.3]} 74... f1=Q+ {[%clk
0:00:09.3]} 75. Ka7 {[%clk 0:00:04]} 75... Qa1+ {[%clk 0:00:09.1]} 76. Ra6
{[%clk 0:00:04.2]} 76... Qd4+ {[%clk 0:00:09.7]} 77. Rb6 {[%clk 0:00:04.3]}
77... Qa4+ {[%clk 0:00:09.9]} 78. Ra6 {[%clk 0:00:05.5]} 78... Qd4+ {[%clk
0:00:11]} 79. Ka8 {[%clk 0:00:04.1]} 79... Qc4 {[%clk 0:00:06.3]} 80. Ra5+
{[%clk 0:00:03.8]} 80... Ke6 {[%clk 0:00:06.6]} 81. b8=Q {[%clk 0:00:04]} 81...
Qc6+ {[%clk 0:00:08.3]} 82. Qb7 {[%clk 0:00:04.8]} 82... Qe8+ {[%clk 0:00:08.5]}
83. Ka7 {[%clk 0:00:06.1]} 83... Kf6 {[%clk 0:00:09.4]} 84. Qb6+ {[%clk
0:00:06.6]} 84... Kf7 {[%clk 0:00:10.1]} 85. Qf2+ {[%clk 0:00:07.2]} 85... Kg6
{[%clk 0:00:10.6]} 86. Qg3+ {[%clk 0:00:08.3]} 86... Kh6 {[%clk 0:00:11.3]} 87.
Qg5+ {[%clk 0:00:08.7]} 87... Kh7 {[%clk 0:00:12.7]} 88. Qh5+ {[%clk 0:00:10.3]}
88... Qxh5 {[%clk 0:00:14.1]} 89. Rxh5+ {[%clk 0:00:12.1]} 89... Kg6 {[%clk
0:00:16]} 90. Ra5 {[%clk 0:00:13.9]} 1-0

[Event "*** Titled Tuesday 3|2 Blitz"]
[Site "Chess.com"]
[Date "2015.03.03"]
[Round "5"]
[White "jup1978"]
[Black "kesarev"]
[Result "1-0"]
[WhiteElo "2153"]
[BlackElo "2225"]
[TimeControl "180+2"]
[EndTime "12:06:18 PST"]
[Termination "jup1978 won by resignation"]

1. e4 {[%clk 0:03:00]} 1... g6 {[%clk 0:02:59]} 2. d4 {[%clk 0:02:58.6]} 2...
Bg7 {[%clk 0:03:00.4]} 3. Nf3 {[%clk 0:03:00.2]} 3... c5 {[%clk 0:03:01.4]} 4.
c3 {[%clk 0:02:59.9]} 4... cxd4 {[%clk 0:03:01.4]} 5. cxd4 {[%clk 0:03:01.8]}
5... d5 {[%clk 0:03:03.3]} 6. exd5 {[%clk 0:03:03.2]} 6... Qxd5 {[%clk
0:03:03.8]} 7. Nc3 {[%clk 0:03:04.8]} 7... Qa5 {[%clk 0:03:02.8]} 8. Bb5+ {[%clk
0:03:05.7]} 8... Bd7 {[%clk 0:03:03.2]} 9. Bxd7+ {[%clk 0:03:06.8]} 9... Nxd7
{[%clk 0:03:03.9]} 10. O-O {[%clk 0:03:08.7]} 10... Ngf6 {[%clk 0:03:04.4]} 11.
Re1 {[%clk 0:03:10.4]} 11... Qd8 {[%clk 0:02:52.3]} 12. Qe2 {[%clk 0:02:57.4]}
12... Nb6 {[%clk 0:02:49.9]} 13. Bg5 {[%clk 0:02:42.1]} 13... h6 {[%clk
0:02:33.8]} 14. Bf4 {[%clk 0:02:31.2]} 14... Nbd5 {[%clk 0:02:31.2]} 15. Qb5+
{[%clk 0:02:06.2]} 15... Qd7 {[%clk 0:02:31.3]} 16. Qxd7+ {[%clk 0:02:06.5]}
16... Kxd7 {[%clk 0:02:33]} 17. Ne5+ {[%clk 0:01:51.9]} 17... Ke8 {[%clk
0:02:33.4]} 18. Bd2 {[%clk 0:01:50.8]} 18... e6 {[%clk 0:02:17.5]} 19. Rac1
{[%clk 0:01:45.9]} 19... a6 {[%clk 0:02:12.6]} 20. Be3 {[%clk 0:01:34.6]} 20...
Ke7 {[%clk 0:02:11.2]} 21. Na4 {[%clk 0:01:32]} 21... Rhc8 {[%clk 0:02:08.8]}
22. Nc5 {[%clk 0:01:26.7]} 22... b6 {[%clk 0:02:00.6]} 23. Na4 {[%clk
0:01:20.4]} 23... Nd7 {[%clk 0:01:53.3]} 24. Nxd7 {[%clk 0:00:53.9]} 24... Kxd7
{[%clk 0:01:54.1]} 25. Nc3 {[%clk 0:00:55.3]} 25... Nxc3 {[%clk 0:01:32.4]} 26.
bxc3 {[%clk 0:00:53.4]} 26... Rc4 {[%clk 0:01:28.4]} 27. Bd2 {[%clk 0:00:53.5]}
27... b5 {[%clk 0:01:28.1]} 28. Rb1 {[%clk 0:00:48.9]} 28... Rac8 {[%clk
0:01:28.2]} 29. g3 {[%clk 0:00:49]} 29... Bf8 {[%clk 0:01:28.7]} 30. Re3 {[%clk
0:00:47.5]} 30... h5 {[%clk 0:01:27.2]} 31. Rf3 {[%clk 0:00:48]} 31... f5 {[%clk
0:01:25.9]} 32. Kf1 {[%clk 0:00:44.2]} 32... Be7 {[%clk 0:01:17.9]} 33. Rd3
{[%clk 0:00:42.8]} 33... Bd6 {[%clk 0:01:11.8]} 34. Re1 {[%clk 0:00:41.5]} 34...
Ra4 {[%clk 0:01:11.2]} 35. Bf4 {[%clk 0:00:35.8]} 35... Bxf4 {[%clk 0:01:09.9]}
36. gxf4 {[%clk 0:00:37.7]} 36... Rxa2 {[%clk 0:01:09.4]} 37. d5 {[%clk
0:00:39.2]} 37... exd5 {[%clk 0:01:06.2]} 38. Rxd5+ {[%clk 0:00:39.8]} 38... Kc6
{[%clk 0:01:07]} 39. Rd4 {[%clk 0:00:40.4]} 39... Kb6 {[%clk 0:01:04.1]} 40.
Re6+ {[%clk 0:00:40.9]} 40... Rc6 {[%clk 0:01:05.1]} 41. Rdd6 {[%clk 0:00:31.5]}
41... Rxd6 {[%clk 0:01:04.9]} 42. Rxd6+ {[%clk 0:00:33.4]} 42... Kc5 {[%clk
0:01:06.8]} 43. Rxg6 {[%clk 0:00:32.5]} 43... a5 {[%clk 0:01:06.6]} 44. Rg5
{[%clk 0:00:32.7]} 44... Kc4 {[%clk 0:01:07]} 45. Rxf5 {[%clk 0:00:32.9]} 45...
Rb2 {[%clk 0:01:08.1]} 46. Rxh5 {[%clk 0:00:31.1]} 46... Kxc3 {[%clk 0:01:09.2]}
47. f5 {[%clk 0:00:32.5]} 47... Rd2 {[%clk 0:01:04.8]} 48. f6 {[%clk 0:00:33.5]}
48... Kb4 {[%clk 0:01:05.9]} 49. Rh4+ {[%clk 0:00:28.1]} 49... Kb3 {[%clk
0:01:04.9]} 50. Rh5 {[%clk 0:00:28.1]} 50... Ka4 {[%clk 0:01:06]} 51. Re5 {[%clk
0:00:21.5]} 51... Rd6 {[%clk 0:01:03.4]} 52. Rf5 {[%clk 0:00:21.3]} 52... Rd8
{[%clk 0:01:03.7]} 53. f7 {[%clk 0:00:22.6]} 53... Rf8 {[%clk 0:01:04.6]} 54.
Ke2 {[%clk 0:00:24.3]} 54... b4 {[%clk 0:01:06]} 55. Kd2 {[%clk 0:00:25.9]}
55... Kb3 {[%clk 0:01:01.6]} 56. Rxa5 {[%clk 0:00:25.8]} 56... Rxf7 {[%clk
0:01:02.9]} 57. Ke2 {[%clk 0:00:24.9]} 57... Kc2 {[%clk 0:01:00.8]} 58. Ke3
{[%clk 0:00:23.5]} 58... b3 {[%clk 0:01:01.6]} 59. Rc5+ {[%clk 0:00:23.3]} 59...
Kb1 {[%clk 0:01:02.4]} 60. f4 {[%clk 0:00:24]} 60... b2 {[%clk 0:01:03.3]} 61.
Ke4 {[%clk 0:00:23.6]} 61... Ra7 {[%clk 0:01:02.8]} 62. f5 {[%clk 0:00:22.5]}
62... Ka1 {[%clk 0:01:03.4]} 63. Rb5 {[%clk 0:00:21.3]} 63... b1=Q+ {[%clk
0:01:01.1]} 64. Rxb1+ {[%clk 0:00:23]} 64... Kxb1 {[%clk 0:01:03]} 65. f6 {[%clk
0:00:23.9]} 65... Ra4+ {[%clk 0:01:03.9]} 66. Ke5 {[%clk 0:00:21.5]} 66... Ra5+
{[%clk 0:01:04.4]} 67. Kf4 {[%clk 0:00:21.4]} 67... Ra4+ {[%clk 0:01:05.5]} 68.
Kg5 {[%clk 0:00:22.6]} 68... Ra5+ {[%clk 0:01:06.6]} 69. Kg6 {[%clk 0:00:23.9]}
69... Ra6 {[%clk 0:01:07.4]} 70. h4 {[%clk 0:00:22.5]} 70... Kc2 {[%clk
0:01:08.7]} 71. h5 {[%clk 0:00:23.7]} 71... Kd3 {[%clk 0:01:09.7]} 72. Kg7
{[%clk 0:00:25.1]} 72... Ra1 {[%clk 0:00:34.8]} 73. h6 {[%clk 0:00:21.2]} 73...
Rg1+ {[%clk 0:00:33.5]} 74. Kh7 {[%clk 0:00:19.8]} 74... Rf1 {[%clk 0:00:34.4]}
75. Kg7 {[%clk 0:00:20.1]} 75... Rg1+ {[%clk 0:00:35.5]} 76. Kf8 {[%clk
0:00:19]} 76... Rh1 {[%clk 0:00:36]} 77. f7 {[%clk 0:00:19]} 77... Rxh6 {[%clk
0:00:35.9]} 78. Kg7 {[%clk 0:00:20.1]} 78... Rd6 {[%clk 0:00:35]} 79. f8=Q
{[%clk 0:00:21]} 79... Rd4 {[%clk 0:00:36.2]} 80. Kg6 {[%clk 0:00:21.1]} 80...
Ke4 {[%clk 0:00:36.5]} 81. Qf5+ {[%clk 0:00:20.8]} 81... Ke3 {[%clk 0:00:37.1]}
82. Kg5 {[%clk 0:00:21.8]} 82... Re4 {[%clk 0:00:36.6]} 83. Qc5+ {[%clk
0:00:21]} 83... Kd3 {[%clk 0:00:36.1]} 84. Kf5 {[%clk 0:00:20]} 84... Rd4 {[%clk
0:00:35.7]} 85. Ke5 {[%clk 0:00:18]} 85... Re4+ {[%clk 0:00:36.8]} 86. Kf5
{[%clk 0:00:18.1]} 86... Rd4 {[%clk 0:00:37.7]} 87. Qa3+ {[%clk 0:00:18.4]}
87... Kc4 {[%clk 0:00:38.1]} 88. Qa6+ {[%clk 0:00:19]} 88... Kc5 {[%clk
0:00:38.3]} 89. Ke5 {[%clk 0:00:18.3]} 89... Rd5+ {[%clk 0:00:39.2]} 90. Ke4
{[%clk 0:00:19.7]} 90... Rd4+ {[%clk 0:00:40.3]} 91. Ke3 {[%clk 0:00:21.1]}
91... Rd5 {[%clk 0:00:41.4]} 92. Qb7 {[%clk 0:00:18.7]} 92... Rd6 {[%clk
0:00:40]} 93. Ke4 {[%clk 0:00:16.7]} 93... Re6+ {[%clk 0:00:40.2]} 94. Kf5
{[%clk 0:00:16.9]} 94... Rb6 {[%clk 0:00:36.8]} 95. Qc7+ {[%clk 0:00:16.5]}
95... Kb5 {[%clk 0:00:37]} 96. Ke5 {[%clk 0:00:16.8]} 96... Rc6 {[%clk
0:00:36.9]} 97. Qd7 {[%clk 0:00:17.6]} 97... Kc5 {[%clk 0:00:37.6]} 98. Qa7+
{[%clk 0:00:17.2]} 98... Kb4 {[%clk 0:00:34.8]} 99. Qb7+ {[%clk 0:00:16.1]}
99... Kc5 {[%clk 0:00:35.6]} 100. Qa7+ {[%clk 0:00:16.2]} 100... Kb4 {[%clk
0:00:36.4]} 101. Kd5 {[%clk 0:00:16.5]} 101... Rc4 {[%clk 0:00:35.3]} 102. Qb6+
{[%clk 0:00:16.9]} 102... Kc3 {[%clk 0:00:36.1]} 103. Qe3+ {[%clk 0:00:17.3]}
103... Kb4 {[%clk 0:00:37.1]} 104. Qd2+ {[%clk 0:00:18.3]} 104... Kb3 {[%clk
0:00:37.8]} 105. Qd1+ {[%clk 0:00:18.7]} 105... Kb4 {[%clk 0:00:38.5]} 106. Qb1+
{[%clk 0:00:19.2]} 1-0

[Event "*** Titled Tuesday 3|2 Blitz"]
[Site "Chess.com"]
[Date "2015.03.03"]
[Round "6"]
[White "LADIESGET2KNOWME"]
[Black "Schemato"]
[Result "1-0"]
[WhiteElo "2267"]
[BlackElo "2069"]
[TimeControl "180+2"]
[EndTime "12:10:05 PST"]
[Termination "LADIESGET2KNOWME won by resignation"]

1. d4 {[%clk 0:03:00]} 1... e6 {[%clk 0:02:57.8]} 2. Nc3 {[%clk 0:03:00.7]} 2...
d5 {[%clk 0:02:55.8]} 3. e4 {[%clk 0:03:01.6]} 3... Nf6 {[%clk 0:02:56.3]} 4.
Bg5 {[%clk 0:03:00.7]} 4... Bb4 {[%clk 0:02:56.5]} 5. e5 {[%clk 0:03:01.8]} 5...
h6 {[%clk 0:02:56.9]} 6. Bh4 {[%clk 0:03:03.4]} 6... g5 {[%clk 0:02:54.8]} 7.
Bg3 {[%clk 0:03:04.9]} 7... Ne4 {[%clk 0:02:55.3]} 8. Ne2 {[%clk 0:03:06.4]}
8... c5 {[%clk 0:02:51.8]} 9. a3 {[%clk 0:03:07.8]} 9... Bxc3+ {[%clk
0:02:47.7]} 10. Nxc3 {[%clk 0:03:09.1]} 10... Nxc3 {[%clk 0:02:48.1]} 11. bxc3
{[%clk 0:03:09.2]} 11... b6 {[%clk 0:02:47.2]} 12. h4 {[%clk 0:03:09.9]} 12...
Rg8 {[%clk 0:02:28]} 13. Qh5 {[%clk 0:03:08.9]} 13... g4 {[%clk 0:02:16.5]} 14.
Qxh6 {[%clk 0:03:07.5]} 14... Ba6 {[%clk 0:02:16.9]} 15. Bxa6 {[%clk 0:03:02]}
15... Nxa6 {[%clk 0:02:17.6]} 16. Qh7 {[%clk 0:03:02.3]} 16... Ke7 {[%clk
0:01:56.1]} 17. h5 {[%clk 0:03:03.2]} 17... Qf8 {[%clk 0:01:44.3]} 18. Bh4+
{[%clk 0:03:04]} 18... Kd7 {[%clk 0:01:45]} 19. Bf6 {[%clk 0:03:05]} 19... cxd4
{[%clk 0:01:38.6]} 20. cxd4 {[%clk 0:03:05.1]} 20... Rc8 {[%clk 0:01:39.5]} 21.
Qd3 {[%clk 0:03:00.7]} 21... Nc7 {[%clk 0:01:39.2]} 22. h6 {[%clk 0:03:00.4]}
1-0

[Event "*** Titled Tuesday 3|2 Blitz"]
[Site "Chess.com"]
[Date "2015.03.03"]
[Round "6"]
[White "pKiLz5Rn9b"]
[Black "Bab3s"]
[Result "1-0"]
[WhiteElo "2234"]
[BlackElo "2046"]
[TimeControl "180+2"]
[EndTime "12:11:27 PST"]
[Termination "pKiLz5Rn9b won by resignation"]

1. b3 {[%clk 0:03:00]} 1... e5 {[%clk 0:02:57.1]} 2. Bb2 {[%clk 0:03:01.5]} 2...
Nc6 {[%clk 0:02:58.5]} 3. e3 {[%clk 0:03:02.7]} 3... d5 {[%clk 0:02:59.9]} 4.
Bb5 {[%clk 0:03:03.8]} 4... Bd6 {[%clk 0:03:00.4]} 5. Ne2 {[%clk 0:03:05.3]}
5... Bd7 {[%clk 0:02:59]} 6. f4 {[%clk 0:03:05.3]} 6... f6 {[%clk 0:02:58.8]} 7.
O-O {[%clk 0:03:06.1]} 7... Nge7 {[%clk 0:02:50.8]} 8. Ng3 {[%clk 0:03:07.3]}
8... a6 {[%clk 0:02:47.9]} 9. Be2 {[%clk 0:03:07.9]} 9... Be6 {[%clk 0:02:44.4]}
10. c4 {[%clk 0:03:08.9]} 10... dxc4 {[%clk 0:02:27]} 11. bxc4 {[%clk
0:03:08.7]} 11... exf4 {[%clk 0:02:26.2]} 12. exf4 {[%clk 0:03:09.8]} 12... Bc5+
{[%clk 0:02:26.9]} 13. Kh1 {[%clk 0:03:11.3]} 13... Bd4 {[%clk 0:02:25.4]} 14.
Nc3 {[%clk 0:03:10.2]} 14... O-O {[%clk 0:02:25.2]} 15. Rb1 {[%clk 0:03:09.6]}
15... Nf5 {[%clk 0:02:14.3]} 16. Nxf5 {[%clk 0:03:07.8]} 16... Bxf5 {[%clk
0:02:16.2]} 17. d3 {[%clk 0:03:09.3]} 17... Re8 {[%clk 0:02:16.3]} 18. Bf3
{[%clk 0:03:08.8]} 18... Re3 {[%clk 0:02:09.1]} 19. Bd5+ {[%clk 0:02:56.7]}
19... Kh8 {[%clk 0:02:06.8]} 20. Ne4 {[%clk 0:02:58]} 20... Bxb2 {[%clk
0:01:36.6]} 21. Rxb2 {[%clk 0:02:59.1]} 21... Bxe4 {[%clk 0:01:15.7]} 22. dxe4
{[%clk 0:02:56.5]} 22... Rb8 {[%clk 0:00:29.4]} 23. Qc1 {[%clk 0:02:51.9]} 23...
Rd3 {[%clk 0:00:25.5]} 24. Qb1 {[%clk 0:02:51.9]} 24... Rd4 {[%clk 0:00:23.1]}
25. Bxc6 {[%clk 0:02:52.1]} 1-0

[Event "*** Titled Tuesday 3|2 Blitz"]
[Site "Chess.com"]
[Date "2015.03.03"]
[Round "6"]
[White "bsmail"]
[Black "Colombiano07"]
[Result "1-0"]
[WhiteElo "2049"]
[BlackElo "1950"]
[TimeControl "180+2"]
[EndTime "12:12:03 PST"]
[Termination "bsmail won by resignation"]

1. d4 {[%clk 0:03:00]} 1... d5 {[%clk 0:02:17.7]} 2. c4 {[%clk 0:02:48.2]} 2...
c6 {[%clk 0:02:18.7]} 3. Nf3 {[%clk 0:02:48.8]} 3... e6 {[%clk 0:02:19.9]} 4.
Nc3 {[%clk 0:02:50]} 4... dxc4 {[%clk 0:02:21]} 5. g3 {[%clk 0:02:42.7]} 5... b5
{[%clk 0:01:34.8]} 6. Bg2 {[%clk 0:02:30.9]} 6... Bb7 {[%clk 0:01:33.9]} 7. Ne5
{[%clk 0:02:31]} 7... Qb6 {[%clk 0:01:26.5]} 8. a4 {[%clk 0:02:26.7]} 8... a6
{[%clk 0:01:07.9]} 9. O-O {[%clk 0:02:27]} 9... Nf6 {[%clk 0:01:06.4]} 10. Bg5
{[%clk 0:02:24.8]} 10... Nd5 {[%clk 0:01:07]} 11. Ne4 {[%clk 0:02:25]} 11... Nd7
{[%clk 0:01:00.1]} 12. Nxd7 {[%clk 0:02:21.4]} 12... Kxd7 {[%clk 0:00:58.7]} 13.
e3 {[%clk 0:02:22.7]} 13... Be7 {[%clk 0:00:58.6]} 14. Bxe7 {[%clk 0:02:21.1]}
14... Kxe7 {[%clk 0:00:50.3]} 15. Qg4 {[%clk 0:02:14.5]} 15... Kf8 {[%clk
0:00:46.6]} 16. Nc5 {[%clk 0:02:14.1]} 16... Rd8 {[%clk 0:00:43.1]} 17. Qh4
{[%clk 0:01:59.4]} 17... Nf6 {[%clk 0:00:31]} 18. g4 {[%clk 0:01:57.3]} 18...
Nd7 {[%clk 0:00:22.9]} 19. a5 {[%clk 0:01:55.2]} 19... Qc7 {[%clk 0:00:22.7]}
20. Nxb7 {[%clk 0:01:55.9]} 1-0

[Event "*** Titled Tuesday 3|2 Blitz"]
[Site "Chess.com"]
[Date "2015.03.03"]
[Round "6"]
[White "pedromartinez91"]
[Black "Danirod"]
[Result "1-0"]
[WhiteElo "2160"]
[BlackElo "2300"]
[TimeControl "180+2"]
[EndTime "12:12:04 PST"]
[Termination "pedromartinez91 won by resignation"]

1. e4 {[%clk 0:03:00]} 1... c5 {[%clk 0:02:58.8]} 2. Nf3 {[%clk 0:03:00.1]} 2...
g6 {[%clk 0:02:59.8]} 3. h4 {[%clk 0:02:59.4]} 3... Nf6 {[%clk 0:02:59]} 4. e5
{[%clk 0:02:59.5]} 4... Ng4 {[%clk 0:03:00.2]} 5. d4 {[%clk 0:02:58.2]} 5...
cxd4 {[%clk 0:03:01.1]} 6. Qxd4 {[%clk 0:02:58.8]} 6... d6 {[%clk 0:02:56.5]} 7.
e6 {[%clk 0:02:58]} 7... Nf6 {[%clk 0:02:55.5]} 8. exf7+ {[%clk 0:02:25.9]} 8...
Kxf7 {[%clk 0:02:56.6]} 9. h5 {[%clk 0:02:26.4]} 9... Bg7 {[%clk 0:02:52.6]} 10.
Ng5+ {[%clk 0:02:24]} 10... Kg8 {[%clk 0:02:34.5]} 11. Nc3 {[%clk 0:02:24]}
11... Nc6 {[%clk 0:02:33]} 12. Bc4+ {[%clk 0:02:17.7]} 12... Kf8 {[%clk
0:02:08.3]} 13. Qe3 {[%clk 0:02:02.5]} 13... d5 {[%clk 0:02:06.1]} 14. Bb3
{[%clk 0:01:48]} 14... gxh5 {[%clk 0:01:56.7]} 15. Bd2 {[%clk 0:00:58.2]} 15...
Qd6 {[%clk 0:01:54.6]} 16. Nb5 {[%clk 0:00:53.3]} 16... Qe5 {[%clk 0:01:52.1]}
17. Qxe5 {[%clk 0:00:50.9]} 17... Nxe5 {[%clk 0:01:53.4]} 18. Nc7 {[%clk
0:00:52.5]} 18... Rb8 {[%clk 0:01:54.8]} 19. Bf4 {[%clk 0:00:53.3]} 19... Nfg4
{[%clk 0:01:47.1]} 20. f3 {[%clk 0:00:47.5]} 20... h6 {[%clk 0:01:48.3]} 21.
Nge6+ {[%clk 0:00:47.5]} 21... Bxe6 {[%clk 0:01:49.9]} 22. Nxe6+ {[%clk
0:00:48.7]} 22... Kf7 {[%clk 0:01:51.4]} 23. Nxg7 {[%clk 0:00:49.6]} 23... Rbd8
{[%clk 0:01:38.3]} 24. Nxh5 {[%clk 0:00:46.7]} 1-0

[Event "*** Titled Tuesday 3|2 Blitz"]
[Site "Chess.com"]
[Date "2015.03.03"]
[Round "6"]
[White "Mugzyyy"]
[Black "Tilicheev_Viacheslav"]
[Result "0-1"]
[WhiteElo "2318"]
[BlackElo "2518"]
[TimeControl "180+2"]
[EndTime "12:12:52 PST"]
[Termination "Tilicheev_Viacheslav won by resignation"]

1. d4 {[%clk 0:03:00]} 1... d5 {[%clk 0:02:58.6]} 2. c4 {[%clk 0:03:01.2]} 2...
e5 {[%clk 0:02:59.2]} 3. e3 {[%clk 0:03:01]} 3... exd4 {[%clk 0:02:59.6]} 4.
exd4 {[%clk 0:03:02.4]} 4... Nf6 {[%clk 0:03:00.8]} 5. Nc3 {[%clk 0:03:03.5]}
5... Bb4 {[%clk 0:03:01.5]} 6. Nf3 {[%clk 0:03:04.3]} 6... O-O {[%clk
0:03:02.7]} 7. Be2 {[%clk 0:03:03.5]} 7... Nc6 {[%clk 0:03:04]} 8. O-O {[%clk
0:03:04.5]} 8... Bg4 {[%clk 0:03:03.3]} 9. a3 {[%clk 0:02:56.2]} 9... Be7 {[%clk
0:02:57.4]} 10. cxd5 {[%clk 0:02:52.7]} 10... Nxd5 {[%clk 0:02:57.4]} 11. h3
{[%clk 0:02:54.3]} 11... Bh5 {[%clk 0:02:56.2]} 12. Be3 {[%clk 0:02:52.8]} 12...
Nxe3 {[%clk 0:02:54.4]} 13. fxe3 {[%clk 0:02:53.8]} 13... Re8 {[%clk 0:02:56]}
14. d5 {[%clk 0:02:38.6]} 14... Bxf3 {[%clk 0:02:52.6]} 15. gxf3 {[%clk
0:02:39.9]} 15... Ne5 {[%clk 0:02:52.6]} 16. f4 {[%clk 0:02:41.3]} 16... Ng6
{[%clk 0:02:53.5]} 17. e4 {[%clk 0:02:23.4]} 17... Bc5+ {[%clk 0:02:53.9]} 18.
Kh1 {[%clk 0:02:13.4]} 18... Qh4 {[%clk 0:02:47.6]} 19. Bg4 {[%clk 0:02:04.9]}
19... h5 {[%clk 0:02:48.2]} 20. Bf5 {[%clk 0:02:06.3]} 20... Nxf4 {[%clk
0:02:43.2]} 21. Qf3 {[%clk 0:02:07.3]} 21... Bd6 {[%clk 0:02:42.6]} 22. Rg1
{[%clk 0:01:40.3]} 22... g6 {[%clk 0:02:40.1]} 23. Nb5 {[%clk 0:01:22.5]} 23...
Be5 {[%clk 0:02:22.4]} 24. d6 {[%clk 0:01:21.2]} 24... cxd6 {[%clk 0:02:15.1]}
25. Nc7 {[%clk 0:01:22.5]} 25... Kh7 {[%clk 0:01:54.3]} 26. Nxa8 {[%clk
0:01:23.5]} 26... Rxa8 {[%clk 0:01:55.4]} 27. Bg4 {[%clk 0:01:05.3]} 27... Rh8
{[%clk 0:01:47.5]} 28. Rac1 {[%clk 0:00:59.5]} 28... hxg4 {[%clk 0:01:42.4]} 29.
Rxg4 {[%clk 0:01:00.6]} 29... Qf6 {[%clk 0:01:38.8]} 30. Rf1 {[%clk 0:00:59.7]}
30... Kg7 {[%clk 0:01:37.7]} 31. h4 {[%clk 0:01:00.9]} 31... Rxh4+ {[%clk
0:01:37.9]} 32. Rxh4 {[%clk 0:01:02.2]} 32... Qxh4+ {[%clk 0:01:39.1]} 33. Kg1
{[%clk 0:01:03.9]} 33... Bd4+ {[%clk 0:01:37.6]} 0-1